[Event "Netanya International GM 2019"]
[Site "Netanya"]
[Date "2019.06.23"]
[Round "1.5"]
[White "Nabaty, Tamir"]
[Black "Smirin, Ilia"]
[Result "1/2-1/2"]
[ECO "B07"]
[WhiteElo "2678"]
[BlackElo "2594"]
[Annotator "ChessBase"]
[PlyCount "152"]
[EventDate "2019.06.23"]
[EventType "tourn"]
[EventCountry "ISR"]
[SourceTitle "playchess.com"]
[Source "ChessBase"]
[SourceQuality "1"]
[TimeControl "40/5400+30:1800+30"]

1. d4 {[%emt 0:00:00]} Nf6 {[%emt 0:00:00]} 2. Nf3 {[%emt 0:00:00]} g6 {[%emt 0:00:22]} 3. Nbd2 {[%emt 0:00:00]} Bg7 {[%emt 0:00:59]} 4. e4 {[%emt 0:00:06]} d6 {[%emt 0:00:04]} 5. Bb5+ {[%emt 0:00:10]} c6 {[%emt 0:00:14]} 6. Bd3 {[%emt 0:00:11]} O-O {[%emt 0:00:38]} 7. O-O {[%emt 0:00:12]} c5 {[%emt 0:00:16]} 8. dxc5 {[%emt 0:00:26]} dxc5 {[%emt 0:00:06]} 9. a4 {[%emt 0:00:15]} Nc6 {[%emt 0:01:02]} 10. Re1 {[%emt 0:00:32]} Ng4 {[%emt 0:03:03]} 11. Nc4 {[%emt 0:03:21]} Nb4 {[%emt 0:05:59]} 12. h3 {[%emt 0:03:29]} Nxd3 {[%emt 0:01:08]} 13. cxd3 {[%emt 0:02:30]} Nf6 {[%emt 0:00:14]} 14. Be3 {[%emt 0:01:03]} b6 {[%emt 0:01:21]} 15. a5 {[%emt 0:03:11]} Ba6 {[%emt 0:01:24]} 16. Nce5 {[%emt 0:12:43]} Nd7 {[%emt 0:07:35]} 17. Nc6 {[%emt 0:05:14]} Qe8 {[%emt 0:00:24]} 18. Bg5 {[%emt 0:09:23]} f6 {[%emt 0:11:47]} 19. axb6 {[%emt 0:01:26]} axb6 {[%emt 0:01:41]} 20. Qb3+ {[%emt 0:07:55]} c4 {[%emt 0:07:00]} 21. Qb4 {[%emt 0:01:56]} e6 {[%emt 0:07:19]} 22. Be3 {[%emt 0:06:55]} cxd3 {[%emt 0:00:13]} 23. Bxb6 {[%emt 0:02:49]} Rf7 {[%emt 0:03:22]} 24. Be3 {[%emt 0:03:22]} Bf8 {[%emt 0:01:52]} 25. Qc3 {[%emt 0:01:56]} Bb7 {[%emt 0:05:52]} 26. Rxa8 {[%emt 0:00:51]} Qxa8 {[%emt 0:03:07]} 27. Rc1 {[%emt 0:00:47]} Bc5 {[%emt 0:07:39]} 28. Bxc5 {[%emt 0:16:31]} Bxc6 {[%emt 0:01:40]} 29. Be3 {[%emt 0:00:17]} Bxe4 {[%emt 0:01:04]} 30. Ne1 {[%emt 0:01:03]} Ne5 {[%emt 0:02:19]} 31. f3 {[%emt 0:00:45]} Bd5 {[%emt 0:03:34]} 32. Bd4 {[%emt 0:05:23]} Qb8 {[%emt 0:02:26]} 33. Bxe5 {[%emt 0:04:19]} Qxe5 {[%emt 0:00:21]} 34. Qxe5 {[%emt 0:02:06]} fxe5 {[%emt 0:00:00]} 35. Nxd3 {[%emt 0:00:35]} e4 {[%emt 0:00:52]} 36. fxe4 {[%emt 0:01:58]} Bxe4 {[%emt 0:00:11]} 37. Nc5 {[%emt 0:03:14]} Bd5 {[%emt 0:01:01]} 38. b4 {[%emt 0:00:59]} Rf4 {[%emt 0:02:41]} 39. Rb1 {[%emt 0:00:31]} Rd4 {[%emt 0:09:59]} 40. Rb2 {[%emt 0:00:00]} Kf7 {[%emt 0:00:00]} 41. b5 {[%emt 0:04:10]} Rc4 {[%emt 0:03:25]} 42. Nd3 {[%emt 0:01:18]} Rd4 {[%emt 0:03:56]} 43. Ne5+ {[%emt 0:01:13]} Kf6 {[%emt 0:10:23]} 44. Ng4+ {[%emt 0:02:05]} Ke7 {[%emt 0:01:19]} 45. b6 {[%emt 0:00:46]} Bb7 {[%emt 0:00:08]} 46. Rc2 {[%emt 0:01:16]} Kd6 {[%emt 0:04:01]} 47. Rc7 {[%emt 0:03:42]} Bc6 {[%emt 0:08:31]} 48. Rxh7 {[%emt 0:01:08]} Rd1+ {[%emt 0:00:10]} 49. Kh2 {[%emt 0:01:01]} Rd2 {[%emt 0:03:36]} 50. Ne3 {[%emt 0:00:07]} Re2 {[%emt 0:03:54]} 51. b7 {[%emt 0:00:21]} Bxb7 {[%emt 0:00:03]} 52. Rxb7 {[%emt 0:03:50]} Rxe3 {[%emt 0:00:04]} 53. Rg7 {[%emt 0:00:08]} e5 {[%emt 0:01:30]} 54. Rxg6+ {[%emt 0:00:35]} Kd5 {[%emt 0:00:03]} 55. h4 {[%emt 0:00:52]} Re4 {[%emt 0:01:12]} 56. g4 {[%emt 0:03:51]} Re2+ {[%emt 0:00:40]} 57. Kg3 {[%emt 0:00:04]} Re3+ {[%emt 0:00:06]} 58. Kg2 {[%emt 0:00:32]} Re2+ {[%emt 0:01:15]} 59. Kf3 {[%emt 0:00:13]} Rh2 {[%emt 0:00:14]} 60. h5 {[%emt 0:01:33]} e4+ {[%emt 0:00:15]} 61. Kg3 {[%emt 0:01:37]} e3 {[%emt 0:02:15]} 62. Rg8 {[%emt 0:03:50]} Rh1 {[%emt 0:00:10]} 63. Kf3 {[%emt 0:03:14]} Rh3+ {[%emt 0:02:39]} 64. Kf4 {[%emt 0:00:03]} Kd4 {[%emt 0:00:19]} 65. Re8 {[%emt 0:03:40]} Kd3 {[%emt 0:00:09]} 66. h6 {[%emt 0:00:24]} e2 {[%emt 0:00:22]} 67. g5 {[%emt 0:01:19]} Kd2 {[%emt 0:00:12]} 68. Kf5 {[%emt 0:01:01]} Re3 {[%emt 0:00:00]} 69. Rxe3 {[%emt 0:00:59]} Kxe3 {[%emt 0:00:41]} 70. h7 {[%emt 0:00:04]} e1=Q {[%emt 0:00:04]} 71. h8=Q {[%emt 0:00:06]} Qb1+ {[%emt 0:01:06]} 72. Ke6 {[%emt 0:00:04]} Qb6+ {[%emt 0:01:31]} 73. Kf7 {[%emt 0:00:28]} Qb7+ {[%emt 0:00:24]} 74. Kg6 {[%emt 0:01:20]} Qe4+ {[%emt 0:00:04]} 75. Kf7 {[%emt 0:00:23]} Qd5+ {[%emt 0:00:09]} 76. Kg6 {[%emt 0:00:05]} Qe4+ {[%emt 0:00:04]} 1/2-1/2

[Event "Netanya International GM 2019"]
[Site "Netanya"]
[Date "2019.06.26"]
[Round "4.2"]
[White "McShane, Luke J"]
[Black "Smirin, Ilia"]
[Result "1/2-1/2"]
[ECO "B40"]
[WhiteElo "2688"]
[BlackElo "2594"]
[Annotator "RC"]
[PlyCount "95"]
[EventDate "2019.06.23"]
[EventType "tourn"]
[EventCountry "ISR"]
[SourceTitle "playchess.com"]
[Source "ChessBase"]
[SourceQuality "1"]
[TimeControl "40/5400+30:1800+30"]

1. e4 {[%emt 0:00:00]} c5 {[%emt 0:00:00]} 2. Nf3 {[%emt 0:00:00]} e6 {[%emt 0:00:00]} 3. g3 {[%emt 0:00:00]} d5 {[%emt 0:00:34]} 4. exd5 {[%emt 0:00:00]} exd5 {[%emt 0:00:05]} 5. d4 {[%emt 0:00:00]} Nc6 {[%emt 0:00:28]} 6. Bg2 {[%emt 0:00:21]} Nf6 {[%emt 0:00:27]} 7. O-O {[%emt 0:00:20]} Be7 {[%emt 0:00:08]} 8. dxc5 {[%emt 0:07:36]} Bxc5 {[%emt 0:00:21]} 9. a3 {[%emt 0:01:20]} O-O {[%emt 0:01:10]} 10. Nc3 {[%emt 0:00:05]} Re8 {[%emt 0:00:43]} 11. b4 {[%emt 0:04:28]} d4 {[%emt 0:01:11]} 12. Na4 {[%emt 0:14:05]} Bf8 {[%emt 0:00:39]} 13. c4 {[%emt 0:07:25]} dxc3 {[%emt 0:09:28]} 14. Nxc3 {[%emt 0:03:07]} Bg4 {[%emt 0:07:08]} 15. Be3 {[%emt 0:23:39]} Qc8 {[%emt 0:04:38]} 16. Qb3 {[%emt 0:05:19]} Be6 {[%emt 0:03:51]} 17. Qb2 {[%emt 0:01:03]} Bh3 {[%emt 0:00:39]} 18. Rfd1 {[%emt 0:06:18]} Bxg2 {[%emt 0:05:59]} 19. Kxg2 {[%emt 0:00:03]} Qf5 {[%emt 0:00:41]} 20. h3 {[%emt 0:03:41]} Rac8 {[%emt 0:05:49]} 21. Qb3 {[%emt 0:02:45]} Rxe3 {[%emt 0:08:30]} 22. fxe3 {[%emt 0:01:12]} Ne5 {[%emt 0:00:14]} 23. Nxe5 {[%emt 0:10:06]} Qxe5 {[%emt 0:00:24]} 24. Rac1 {[%emt 0:01:03]} Qxe3 {[%emt 0:12:29]} 25. Qb2 {[%emt 0:03:19]} Nh5 {[%emt 0:01:29]} 26. Ne2 {[%emt 0:00:03]} Re8 {[%emt 0:01:37]} 27. Rd2 {[%emt 0:03:53]} Qe4+ {[%emt 0:06:29]} 28. Kh2 {[%emt 0:00:04]} g6 {[%emt 0:02:25]} 29. Rf1 {[%emt 0:00:29]} Bh6 {[%emt 0:01:29]} 30. Rc2 {[%emt 0:01:13]} Qd3 {[%emt 0:00:27]} 31. Qa2 {[%emt 0:00:17]} Rxe2+ {[%emt 0:01:21]} 32. Rxe2 {[%emt 0:00:18]} Qxg3+ {[%emt 0:00:06]} 33. Kh1 {[%emt 0:00:02]} Qxh3+ {[%emt 0:00:49]} 34. Kg1 {[%emt 0:00:02]} Qg3+ {[%emt 0:03:16]} 35. Kh1 {[%emt 0:00:27]} Qh3+ {[%emt 0:01:39]} 36. Kg1 {[%emt 0:00:03]} Be3+ {[%emt 0:00:04]} 37. Rxe3 {[%emt 0:00:10]} Qxe3+ {[%emt 0:00:05]} 38. Qf2 {[%emt 0:00:03]} Qg5+ {[%emt 0:01:56]} 39. Kh2 {[%emt 0:00:09]} Qe7 {[%emt 0:06:40]} 40. Qxa7 {[%emt 0:00:00]} Qe5+ {[%emt 0:00:00]} 41. Kg1 {[%emt 0:02:03]} Nf4 {[%emt 0:12:48]} 42. Rxf4 {[%emt 0:10:45]} Qxf4 {[%emt 0:00:46]} 43. Qxb7 {[%emt 0:00:12]} h5 {[%emt 0:04:14]} 44. b5 {[%emt 0:01:25]} h4 {[%emt 0:01:06]} 45. b6 {[%emt 0:02:31]} Qe3+ {[%emt 0:03:28]} 46. Kh2 {[%emt 0:04:01]} Qf2+ {[%emt 0:04:27]} 47. Kh1 {[%emt 0:00:35]} Qf1+ {[%emt 0:00:14]} 48. Kh2 {[%emt 0:00:04]} 1/2-1/2

[Event "Netanya International GM 2019"]
[Site "Netanya"]
[Date "2019.06.27"]
[Round "5.1"]
[White "Rodshtein, Maxim"]
[Black "Dubov, Daniil"]
[Result "0-1"]
[ECO "D33"]
[WhiteElo "2685"]
[BlackElo "2700"]
[Annotator "RC"]
[PlyCount "84"]
[EventDate "2019.06.23"]
[EventType "tourn"]
[EventCountry "ISR"]
[SourceTitle "playchess.com"]
[Source "ChessBase"]
[SourceQuality "1"]
[TimeControl "40/5400+30:1800+30"]

1. c4 {[%emt 0:00:00]} Nf6 {[%emt 0:00:00]} 2. Nc3 {[%emt 0:00:18]} c5 {[%emt 0:00:00]} 3. g3 {[%emt 0:00:55]} e6 {[%emt 0:00:09]} 4. Nf3 {[%emt 0:00:30]} d5 {[%emt 0:00:07]} 5. cxd5 {[%emt 0:00:23]} exd5 {[%emt 0:00:06]} 6. d4 {[%emt 0:00:28]} Nc6 {[%emt 0:00:09]} 7. Bg2 {[%emt 0:00:27]} cxd4 {[%emt 0:00:08]} 8. Nxd4 {[%emt 0:00:05]} Bc5 {[%emt 0:00:05]} 9. Nxc6 {[%emt 0:12:23]} bxc6 {[%emt 0:01:28]} 10. Qc2 {[%emt 0:00:07]} O-O {[%emt 0:01:23]} 11. O-O {[%emt 0:00:22]} Bb6 {[%emt 0:01:12]} 12. Na4 {[%emt 0:01:51]} Bd7 {[%emt 0:02:22]} 13. b3 {[%emt 0:06:35]} Re8 {[%emt 0:00:22]} 14. Bb2 {[%emt 0:01:00]} h5 {[%emt 0:00:21]} 15. e3 {[%emt 0:34:22]} h4 {[%emt 0:01:35]} 16. Nxb6 {[%emt 0:03:17]} axb6 {[%emt 0:03:50]} 17. Qc3 {[%emt 0:00:06]} Rc8 {[%emt 0:03:33]} 18. Rad1 {[%emt 0:03:10]} hxg3 {[%emt 0:17:31]} 19. fxg3 {[%emt 0:03:03]} Re6 {[%emt 0:04:22]} 20. e4 {[%emt 0:06:48]} Qf8 {[%emt 0:02:56]} 21. Rf4 {[%emt 0:02:09]} Rce8 {[%emt 0:03:10]} 22. exd5 {[%emt 0:14:31]} Nxd5 {[%emt 0:03:56]} 23. Bxd5 {[%emt 0:00:09]} cxd5 {[%emt 0:00:05]} 24. Rdf1 {[%emt 0:00:09]} f6 {[%emt 0:01:06]} 25. Qd3 {[%emt 0:01:09]} Qf7 {[%emt 0:05:33]} 26. Bd4 {[%emt 0:01:39]} b5 {[%emt 0:01:50]} 27. g4 {[%emt 0:02:14]} Re4 {[%emt 0:01:18]} 28. h3 {[%emt 0:00:15]} Qe6 {[%emt 0:03:46]} 29. R4f2 {[%emt 0:04:28]} b4 {[%emt 0:03:45]} 30. Rd1 {[%emt 0:00:23]} Qd6 {[%emt 0:01:21]} 31. Kg2 {[%emt 0:00:52]} Bc8 {[%emt 0:16:33]} 32. Qg3 {[%emt 0:00:21]} Qe6 {[%emt 0:00:11]} 33. Kh2 {[%emt 0:00:50]} Re2 {[%emt 0:02:13]} 34. Rg1 {[%emt 0:01:06]} Qe4 {[%emt 0:01:58]} 35. Rxe2 {[%emt 0:00:21]} Qxe2+ {[%emt 0:00:03]} 36. Qg2 {[%emt 0:00:36]} Qd3 {[%emt 0:01:16]} 37. Qxd5+ {[%emt 0:00:24]} Be6 {[%emt 0:00:02]} 38. Qc6 {[%emt 0:00:28]} Bf7 {[%emt 0:00:36]} 39. Bf2 {[%emt 0:00:39]} Re2 {[%emt 0:00:12]} 40. Qc5 {[%emt 0:00:00]} Rc2 {[%emt 0:00:00]} 41. Qb6 {[%emt 0:02:46]} Qf3 {[%emt 0:07:11]} 42. Rf1 {[%emt 0:00:06]} Kh7 {[%emt 0:00:36]} 0-1

[Event "Netanya International GM 2019"]
[Site "Netanya"]
[Date "2019.06.27"]
[Round "5.5"]
[White "Postny, Evgeny"]
[Black "McShane, Luke J"]
[Result "1-0"]
[ECO "A90"]
[WhiteElo "2601"]
[BlackElo "2688"]
[Annotator "RC"]
[PlyCount "175"]
[EventDate "2019.06.23"]
[EventType "tourn"]
[EventCountry "ISR"]
[SourceTitle "playchess.com"]
[Source "ChessBase"]
[SourceQuality "1"]
[TimeControl "40/5400+30:1800+30"]

1. d4 {[%emt 0:00:00]} e6 {[%emt 0:00:00]} 2. c4 {[%emt 0:00:00]} Bb4+ {[%emt 0:00:00]} 3. Bd2 {[%emt 0:00:00]} Bxd2+ {[%emt 0:00:09]} 4. Qxd2 {[%emt 0:00:00]} f5 {[%emt 0:00:12]} 5. Nf3 {[%emt 0:03:15]} Nf6 {[%emt 0:00:06]} 6. g3 {[%emt 0:01:48]} O-O {[%emt 0:00:19]} 7. Bg2 {[%emt 0:00:05]} d6 {[%emt 0:00:23]} 8. Nc3 {[%emt 0:00:53]} Qe7 {[%emt 0:01:39]} 9. O-O {[%emt 0:00:32]} c6 {[%emt 0:00:06]} 10. Rad1 {[%emt 0:05:47]} Nbd7 {[%emt 0:10:16]} 11. Qc2 {[%emt 0:06:55]} d5 {[%emt 0:08:25]} 12. cxd5 {[%emt 0:17:36]} cxd5 {[%emt 0:00:05]} 13. Rc1 {[%emt 0:00:06]} Ne4 {[%emt 0:26:17]} 14. Qb3 {[%emt 0:06:10]} a6 {[%emt 0:21:26]} 15. e3 {[%emt 0:03:04]} Rb8 {[%emt 0:03:25]} 16. Ne2 {[%emt 0:04:04]} Ndf6 {[%emt 0:03:19]} 17. Qb6 {[%emt 0:06:30]} Bd7 {[%emt 0:03:52]} 18. Nf4 {[%emt 0:23:58]} g5 {[%emt 0:00:42]} 19. Nd3 {[%emt 0:00:05]} Bb5 {[%emt 0:01:08]} 20. Nfe5 {[%emt 0:00:13]} Qd6 {[%emt 0:10:36]} 21. Qc7 {[%emt 0:04:29]} Bc4 {[%emt 0:03:32]} 22. Qa5 {[%emt 0:05:09]} b6 {[%emt 0:01:17]} 23. Qe1 {[%emt 0:01:35]} Bxd3 {[%emt 0:00:03]} 24. Nxd3 {[%emt 0:00:13]} g4 {[%emt 0:00:07]} 25. Ne5 {[%emt 0:01:15]} Rfc8 {[%emt 0:00:42]} 26. Qe2 {[%emt 0:00:31]} b5 {[%emt 0:02:04]} 27. Rc2 {[%emt 0:01:11]} Rc7 {[%emt 0:00:10]} 28. Rfc1 {[%emt 0:00:26]} Rbc8 {[%emt 0:00:04]} 29. a4 {[%emt 0:02:50]} bxa4 {[%emt 0:02:18]} 30. Rxc7 {[%emt 0:00:57]} Rxc7 {[%emt 0:00:02]} 31. Rxc7 {[%emt 0:00:11]} Qxc7 {[%emt 0:00:01]} 32. Qxa6 {[%emt 0:00:07]} Ng5 {[%emt 0:00:26]} 33. Nc6 {[%emt 0:01:45]} Nd7 {[%emt 0:01:41]} 34. Qa8+ {[%emt 0:02:38]} Kg7 {[%emt 0:00:23]} 35. Qxa4 {[%emt 0:00:05]} Kf6 {[%emt 0:00:35]} 36. Qb5 {[%emt 0:02:23]} Nf7 {[%emt 0:00:01]} 37. Bf1 {[%emt 0:00:29]} Nd6 {[%emt 0:00:15]} 38. Qa4 {[%emt 0:00:29]} Nb6 {[%emt 0:00:52]} 39. Qc2 {[%emt 0:00:06]} Ne4 {[%emt 0:00:33]} 40. Bd3 {[%emt 0:00:00]} Ng5 {[%emt 0:00:00]} 41. Qc5 {[%emt 0:09:34]} Nf7 {[%emt 0:07:44]} 42. b3 {[%emt 0:02:22]} Qb7 {[%emt 0:01:52]} 43. Na5 {[%emt 0:09:56]} Qb8 {[%emt 0:00:30]} 44. Bb5 {[%emt 0:04:13]} Nc8 {[%emt 0:02:14]} 45. Be8 {[%emt 0:01:42]} Nfd6 {[%emt 0:01:18]} 46. Bc6 {[%emt 0:02:04]} Na7 {[%emt 0:02:33]} 47. Bd7 {[%emt 0:02:44]} Ne4 {[%emt 0:00:43]} 48. Qa3 {[%emt 0:00:05]} Kf7 {[%emt 0:07:32]} 49. Nc6 {[%emt 0:01:12]} Nxc6 {[%emt 0:00:06]} 50. Bxc6 {[%emt 0:00:03]} h5 {[%emt 0:07:08]} 51. b4 {[%emt 0:01:04]} h4 {[%emt 0:00:05]} 52. b5 {[%emt 0:01:06]} hxg3 {[%emt 0:02:50]} 53. hxg3 {[%emt 0:00:04]} Nd2 {[%emt 0:00:06]} 54. Qa8 {[%emt 0:00:59]} Qxa8 {[%emt 0:00:44]} 55. Bxa8 {[%emt 0:00:04]} Ke7 {[%emt 0:00:26]} 56. Bc6 {[%emt 0:00:44]} Kd6 {[%emt 0:00:19]} 57. Be8 {[%emt 0:00:08]} Nc4 {[%emt 0:00:39]} 58. Bf7 {[%emt 0:00:51]} Ke7 {[%emt 0:01:42]} 59. Bg8 {[%emt 0:00:24]} Nb6 {[%emt 0:00:50]} 60. Kf1 {[%emt 0:01:03]} Nd7 {[%emt 0:00:41]} 61. Ke2 {[%emt 0:00:26]} Kd6 {[%emt 0:00:25]} 62. Bf7 {[%emt 0:00:54]} Ke7 {[%emt 0:00:21]} 63. Bg6 {[%emt 0:00:33]} Nb6 {[%emt 0:01:03]} 64. Kd3 {[%emt 0:00:48]} Nc4 {[%emt 0:00:32]} 65. Kc3 {[%emt 0:00:37]} Kd7 {[%emt 0:01:00]} 66. Kb4 {[%emt 0:00:33]} Nd6 {[%emt 0:01:25]} 67. Ka5 {[%emt 0:00:39]} Kc7 {[%emt 0:00:22]} 68. Ka6 {[%emt 0:00:38]} Kb8 {[%emt 0:00:03]} 69. Kb6 {[%emt 0:00:12]} Ne4 {[%emt 0:00:18]} 70. Bf7 {[%emt 0:00:05]} Nxf2 {[%emt 0:00:39]} 71. Bxe6 {[%emt 0:00:07]} Nd1 {[%emt 0:00:26]} 72. Bxf5 {[%emt 0:00:21]} Nxe3 {[%emt 0:00:02]} 73. Bd3 {[%emt 0:00:44]} Nd1 {[%emt 0:00:08]} 74. Kc5 {[%emt 0:00:31]} Nc3 {[%emt 0:00:43]} 75. Bf5 {[%emt 0:01:12]} Kc7 {[%emt 0:00:31]} 76. Bxg4 {[%emt 0:00:45]} Ne4+ {[%emt 0:00:05]} 77. Kxd5 {[%emt 0:00:04]} Nf6+ {[%emt 0:01:09]} 78. Ke6 {[%emt 0:00:04]} Nxg4 {[%emt 0:00:03]} 79. d5 {[%emt 0:00:06]} Nf2 {[%emt 0:00:41]} 80. d6+ {[%emt 0:00:07]} Kd8 {[%emt 0:00:03]} 81. b6 {[%emt 0:01:14]} Nd3 {[%emt 0:00:06]} 82. g4 {[%emt 0:00:39]} Nc5+ {[%emt 0:00:10]} 83. Kd5 {[%emt 0:00:22]} Nb7 {[%emt 0:00:02]} 84. g5 {[%emt 0:00:49]} Kd7 {[%emt 0:00:06]} 85. g6 {[%emt 0:00:15]} Nxd6 {[%emt 0:00:04]} 86. b7 {[%emt 0:00:16]} Kc7 {[%emt 0:00:27]} 87. b8=B+ {[%emt 0:00:13]} Kxb8 {[%emt 0:00:05]} 88. Kxd6 {[%emt 0:00:05]} 1-0